[Event "36th Indian-ch U13 Open 2023"]
[Site "Secunderabad"]
[Date "2023.12.07"]
[Round "6.7"]
[White "Venkat, Raghav"]
[Black "Ram Vishal Parab"]
[Result "1-0"]
[ECO "C54"]
[WhiteElo "2205"]
[BlackElo "1686"]
[Annotator "RC"]
[PlyCount "121"]
[EventDate "2023.12.04"]
[EventType "swiss"]
[EventCountry "IND"]
[SourceTitle "playchess.com"]
[Source "ChessBase"]
[SourceQuality "1"]
[TimeControl "5400+30"]

1. e4 {[%emt 0:00:06]} e5 {[%emt 0:01:03]} 2. Nf3 {[%emt 0:00:04]} Nc6 {[%emt 0:00:11]} 3. Bc4 {[%emt 0:00:06]} Bc5 {[%emt 0:00:09]} 4. c3 {[%emt 0:00:05]} Nf6 {[%emt 0:00:09]} 5. d3 {[%emt 0:00:05]} d6 {[%emt 0:00:05]} 6. O-O {[%emt 0:00:07]} h6 {[%emt 0:00:04]} 7. Re1 {[%emt 0:05:15]} O-O {[%emt 0:00:30]} 8. Bb3 {[%emt 0:01:43]} a6 {[%emt 0:00:15]} 9. h3 {[%emt 0:00:44]} Ba7 {[%emt 0:00:13]} 10. Nbd2 {[%emt 0:00:44]} Re8 {[%emt 0:00:42]} 11. Nf1 {[%emt 0:01:56]} Be6 {[%emt 0:00:17]} 12. Bc2 {[%emt 0:03:44]} d5 {[%emt 0:04:14]} 13. exd5 {[%emt 0:03:19]} Bxd5 {[%emt 0:00:50]} 14. Ng3 {[%emt 0:01:47]} Qd7 {[%emt 0:03:37]} 15. Be3 {[%emt 0:01:29]} Bxe3 {[%emt 0:04:35]} 16. Rxe3 {[%emt 0:00:23]} Rad8 {[%emt 0:01:50]} 17. Qe2 {[%emt 0:04:34]} Bxf3 {[%emt 0:02:50]} 18. Qxf3 {[%emt 0:00:46]} Qd5 {[%emt 0:05:56]} 19. Qe2 {[%emt 0:04:03]} Qd7 {[%emt 0:07:15]} 20. Re1 {[%emt 0:04:57]} Nd5 {[%emt 0:08:49]} 21. Rf3 {[%emt 0:00:42]} Nf4 {[%emt 0:04:57]} 22. Qf1 {[%emt 0:06:13]} Ne6 {[%emt 0:06:40]} 23. Rfe3 {[%emt 0:04:22]} Nf4 {[%emt 0:04:17]} 24. Ne4 {[%emt 0:09:25]} b6 {[%emt 0:08:32]} 25. Nd2 {[%emt 0:11:07]} Re6 {[%emt 0:03:00]} 26. Kh2 {[%emt 0:08:55]} Rde8 {[%emt 0:07:56]} 27. Bb3 {[%emt 0:03:50]} Rg6 {[%emt 0:00:55]} 28. g3 {[%emt 0:01:23]} Nd5 {[%emt 0:02:01]} 29. R3e2 {[%emt 0:00:58]} Rd8 {[%emt 0:10:50]} 30. Nf3 {[%emt 0:03:58]} Re6 {[%emt 0:02:14]} 31. Nxe5 {[%emt 0:01:39]} Nxe5 {[%emt 0:00:07]} 32. Rxe5 {[%emt 0:00:05]} Rxe5 {[%emt 0:00:05]} 33. Rxe5 {[%emt 0:00:06]} Nf6 {[%emt 0:00:22]} 34. d4 {[%emt 0:00:46]} a5 {[%emt 0:00:54]} 35. Qe2 {[%emt 0:02:43]} Re8 {[%emt 0:00:33]} 36. Kg1 {[%emt 0:01:34]} Rxe5 {[%emt 0:01:53]} 37. dxe5 {[%emt 0:01:01]} Qe7 {[%emt 0:00:57]} 38. Qe3 {[%emt 0:01:27]} Nh7 {[%emt 0:00:32]} 39. h4 {[%emt 0:00:56]} Nf8 {[%emt 0:00:11]} 40. h5 {[%emt 0:02:54]} Ne6 {[%emt 0:00:07]} 41. f4 {[%emt 0:01:59]} Qc5 {[%emt 0:02:10]} 42. Qxc5 {[%emt 0:01:11]} Nxc5 {[%emt 0:00:09]} 43. Bc2 {[%emt 0:00:10]} Kf8 {[%emt 0:00:39]} 44. Kf2 {[%emt 0:00:11]} Ke7 {[%emt 0:00:51]} 45. Ke3 {[%emt 0:00:07]} Ne6 {[%emt 0:02:26]} 46. Bb3 {[%emt 0:02:40]} Nc5 {[%emt 0:00:15]} 47. Kd4 {[%emt 0:00:44]} f6 {[%emt 0:02:43]} 48. exf6+ {[%emt 0:01:56]} gxf6 {[%emt 0:00:16]} 49. g4 {[%emt 0:01:31]} c6 {[%emt 0:00:24]} 50. Bc4 {[%emt 0:01:00]} Nd7 {[%emt 0:01:21]} 51. b4 {[%emt 0:00:42]} axb4 {[%emt 0:00:24]} 52. cxb4 {[%emt 0:00:06]} c5+ {[%emt 0:00:18]} 53. bxc5 {[%emt 0:00:18]} Nxc5 {[%emt 0:00:06]} 54. Kd5 {[%emt 0:02:02]} Nb7 {[%emt 0:00:46]} 55. Bd3 {[%emt 0:00:46]} Nd8 {[%emt 0:00:20]} 56. Bf5 {[%emt 0:00:17]} b5 {[%emt 0:01:08]} 57. Kc5 {[%emt 0:01:04]} Nb7+ {[%emt 0:00:22]} 58. Kxb5 {[%emt 0:00:12]} Nd6+ {[%emt 0:00:05]} 59. Kc6 {[%emt 0:00:38]} Nc4 {[%emt 0:00:11]} 60. a4 {[%emt 0:00:13]} Na5+ {[%emt 0:00:06]} 61. Kb5 {[%emt 0:00:08]} 1-0

[Event "36th Indian-ch U13 Open 2023"]
[Site "Secunderabad"]
[Date "2023.12.07"]
[Round "6.8"]
[White "Aakash G"]
[Black "Mridav M"]
[Result "0-1"]
[ECO "E61"]
[WhiteElo "1935"]
[BlackElo "1545"]
[Annotator "RC"]
[PlyCount "94"]
[EventDate "2023.12.04"]
[EventType "swiss"]
[EventCountry "IND"]
[SourceTitle "playchess.com"]
[Source "ChessBase"]
[SourceQuality "1"]
[TimeControl "5400+30"]

1. d4 {[%emt 0:01:23]} Nf6 {[%emt 0:00:11]} 2. c4 {[%emt 0:00:07]} g6 {[%emt 0:00:07]} 3. Nc3 {[%emt 0:00:12]} Bg7 {[%emt 0:00:06]} 4. Nf3 {[%emt 0:00:06]} O-O {[%emt 0:00:19]} 5. Bg5 {[%emt 0:00:22]} d6 {[%emt 0:00:17]} 6. e3 {[%emt 0:00:07]} c5 {[%emt 0:00:12]} 7. Be2 {[%emt 0:00:14]} cxd4 {[%emt 0:00:43]} 8. exd4 {[%emt 0:00:13]} h6 {[%emt 0:02:16]} 9. Bh4 {[%emt 0:00:40]} Bf5 {[%emt 0:01:45]} 10. O-O {[%emt 0:01:05]} Nbd7 {[%emt 0:03:30]} 11. h3 {[%emt 0:04:09]} g5 {[%emt 0:02:23]} 12. Bg3 {[%emt 0:00:07]} Bg6 {[%emt 0:02:01]} 13. Bd3 {[%emt 0:03:04]} Bxd3 {[%emt 0:08:30]} 14. Qxd3 {[%emt 0:00:08]} Nh5 {[%emt 0:00:13]} 15. Bh2 {[%emt 0:00:48]} f5 {[%emt 0:03:20]} 16. Qe2 {[%emt 0:01:51]} Nf4 {[%emt 0:04:44]} 17. Bxf4 {[%emt 0:00:13]} gxf4 {[%emt 0:00:04]} 18. c5 {[%emt 0:15:28]} e5 {[%emt 0:04:36]} 19. cxd6 {[%emt 0:09:31]} e4 {[%emt 0:00:32]} 20. Ne5 {[%emt 0:00:40]} Nxe5 {[%emt 0:01:55]} 21. dxe5 {[%emt 0:00:06]} Bxe5 {[%emt 0:00:02]} 22. f3 {[%emt 0:00:00]} e3 {[%emt 0:05:24]} 23. Rad1 {[%emt 0:02:07]} Kh8 {[%emt 0:02:41]} 24. Nd5 {[%emt 0:03:32]} Qd7 {[%emt 0:07:43]} 25. Kh1 {[%emt 0:08:09]} Rad8 {[%emt 0:02:55]} 26. g3 {[%emt 0:24:53]} fxg3 {[%emt 0:03:43]} 27. Nxe3 {[%emt 0:00:08]} Qg7 {[%emt 0:01:29]} 28. Nc4 {[%emt 0:05:14]} Bf4 {[%emt 0:01:40]} 29. a4 {[%emt 0:01:26]} g2+ {[%emt 0:04:04]} 30. Qxg2 {[%emt 0:00:07]} Qf7 {[%emt 0:00:02]} 31. Rd4 {[%emt 0:06:24]} Rg8 {[%emt 0:00:05]} 32. Qf2 {[%emt 0:00:32]} Qh5 {[%emt 0:00:10]} 33. h4 {[%emt 0:00:58]} Bg3 {[%emt 0:00:46]} 34. Qg2 {[%emt 0:00:59]} Bxd6 {[%emt 0:08:34]} 35. Qe2 {[%emt 0:06:47]} Bc7 {[%emt 0:01:45]} 36. Qe7 {[%emt 0:03:41]} Rxd4 {[%emt 0:01:03]} 37. Qf6+ {[%emt 0:00:04]} Rg7 {[%emt 0:00:06]} 38. Qxd4 {[%emt 0:00:08]} f4 {[%emt 0:00:13]} 39. Qf6 {[%emt 0:00:24]} Kh7 {[%emt 0:00:28]} 40. Rf2 {[%emt 0:01:16]} Qc5 {[%emt 0:02:35]} 41. Rf1 {[%emt 0:02:10]} Qxc4 {[%emt 0:00:16]} 42. Qf5+ {[%emt 0:00:06]} Kh8 {[%emt 0:00:04]} 43. Re1 {[%emt 0:00:25]} Qc6 {[%emt 0:00:33]} 44. Qf8+ {[%emt 0:01:23]} Kh7 {[%emt 0:00:10]} 45. Qf5+ {[%emt 0:00:06]} Qg6 {[%emt 0:00:04]} 46. Qh3 {[%emt 0:00:05]} Bb6 {[%emt 0:00:20]} 47. Qh2 {[%emt 0:00:13]} Be3 {[%emt 0:00:31]} 0-1

[Event "36th Indian-ch U13 Open 2023"]
[Site "Secunderabad"]
[Date "2023.12.07"]
[Round "6.9"]
[White "Rishit Sharma"]
[Black "Vihaan Dumir"]
[Result "0-1"]
[ECO "B13"]
[WhiteElo "1534"]
[BlackElo "1798"]
[Annotator "NA RC"]
[PlyCount "110"]
[EventDate "2023.12.04"]
[EventType "swiss"]
[EventCountry "IND"]
[SourceTitle "playchess.com"]
[Source "ChessBase"]
[SourceQuality "1"]
[TimeControl "5400+30"]

1. e4 {[%emt 0:00:03]} c6 {[%emt 0:00:04]} 2. d4 {[%emt 0:00:04]} d5 {[%emt 0:00:05]} 3. exd5 {[%emt 0:00:04]} cxd5 {[%emt 0:00:06]} 4. Bd3 {[%emt 0:00:08]} Nf6 {[%emt 0:00:06]} 5. h3 {[%emt 0:00:09]} Nc6 {[%emt 0:00:05]} 6. c3 {[%emt 0:00:05]} g6 {[%emt 0:00:13]} 7. Qc2 {[%emt 0:00:15]} e5 {[%emt 0:02:30]} 8. dxe5 {[%emt 0:01:18]} Nxe5 {[%emt 0:00:12]} 9. Bf4 {[%emt 0:04:28]} Nxd3+ {[%emt 0:03:50]} 10. Qxd3 {[%emt 0:00:06]} Bg7 {[%emt 0:04:45]} 11. Nf3 {[%emt 0:00:50]} O-O {[%emt 0:01:20]} 12. O-O {[%emt 0:02:20]} Bf5 {[%emt 0:00:25]} 13. Qb5 {[%emt 0:02:36]} Qc8 {[%emt 0:07:38]} 14. Nbd2 {[%emt 0:04:19]} a6 {[%emt 0:00:19]} 15. Qb6 {[%emt 0:02:24]} Nd7 {[%emt 0:03:29]} 16. Qc7 {[%emt 0:01:48]} Nc5 {[%emt 0:06:21]} 17. g4 {[%emt 0:22:38]} Bd3 {[%emt 0:01:14]} 18. Rfc1 {[%emt 0:10:01]} Qxc7 {[%emt 0:01:39]} 19. Bxc7 {[%emt 0:00:04]} Na4 {[%emt 0:00:38]} 20. Bd6 {[%emt 0:01:38]} Rfc8 {[%emt 0:01:08]} 21. Ba3 {[%emt 0:00:41]} Rc7 {[%emt 0:17:44]} 22. Ne1 {[%emt 0:05:31]} Bb5 {[%emt 0:05:12]} 23. Nb3 {[%emt 0:03:44]} Nb6 {[%emt 0:06:51]} 24. Bc5 {[%emt 0:05:19]} Nc4 {[%emt 0:00:50]} 25. Nd3 {[%emt 0:00:56]} Nd2 {[%emt 0:05:39]} 26. Nxd2 {[%emt 0:32:01]} Bxd3 {[%emt 0:00:04]} 27. Be3 {[%emt 0:00:00]} f5 {[%emt 0:02:13]} 28. g5 {[%emt 0:00:00]} Rac8 {[%emt 0:01:09]} 29. Nb3 {[%emt 0:00:00]} Kf7 {[%emt 0:06:55]} 30. f4 {[%emt 0:00:00]} h6 {[%emt 0:00:57]} 31. h4 {[%emt 0:00:00]} hxg5 {[%emt 0:00:27]} 32. hxg5 {[%emt 0:00:00]} Be4 {[%emt 0:00:45]} 33. Nd2 {[%emt 0:00:00]} d4 {[%emt 0:01:13]} 34. Nxe4 {[%emt 0:00:00]} fxe4 {[%emt 0:00:04]} 35. cxd4 {[%emt 0:00:00]} Rxc1+ {[%emt 0:00:05]} 36. Rxc1 {[%emt 0:00:00]} Rxc1+ {[%emt 0:00:07]} 37. Bxc1 {[%emt 0:00:00]} Bxd4+ {[%emt 0:00:07]} 38. Kg2 {[%emt 0:00:00]} Ke6 {[%emt 0:00:05]} 39. b3 {[%emt 0:00:00]} Kf5 {[%emt 0:00:37]} 40. Kg3 {[%emt 0:00:00]} Bc5 {[%emt 0:03:06]} 41. a3 {[%emt 0:00:30]} b5 {[%emt 0:03:39]} 42. a4 {[%emt 0:01:15]} bxa4 {[%emt 0:00:28]} 43. bxa4 {[%emt 0:00:03]} Bd4 {[%emt 0:01:58]} 44. Ba3 {[%emt 0:02:47]} Be3 {[%emt 0:00:08]} 45. Bd6 {[%emt 0:00:06]} Bd2 {[%emt 0:00:12]} 46. Bc7 {[%emt 0:00:39]} Be1+ {[%emt 0:02:43]} 47. Kh3 {[%emt 0:00:09]} e3 {[%emt 0:01:32]} 48. Kg2 {[%emt 0:00:33]} Kg4 {[%emt 0:02:01]} 49. Kf1 {[%emt 0:04:27]} Bg3 {[%emt 0:00:08]} 50. f5 {[%emt 0:00:57]} Bxc7 {[%emt 0:00:18]} 51. fxg6 {[%emt 0:00:21]} Kf3 {[%emt 0:01:15]} 52. Ke1 {[%emt 0:00:41]} e2 {[%emt 0:00:31]} 53. Kd2 {[%emt 0:00:04]} Ba5+ {[%emt 0:00:11]} 54. Kd3 {[%emt 0:00:08]} e1=Q {[%emt 0:00:17]} 55. g7 {[%emt 0:00:03]} Qc3# {[%emt 0:00:24]} 0-1

[Event "36th Indian-ch U13 Open 2023"]
[Site "Secunderabad"]
[Date "2023.12.07"]
[Round "6.10"]
[White "Vedant Garg"]
[Black "Malvin Joshua"]
[Result "0-1"]
[ECO "B13"]
[WhiteElo "1752"]
[BlackElo "1540"]
[Annotator "NA RC"]
[PlyCount "96"]
[EventDate "2023.12.04"]
[EventType "swiss"]
[EventCountry "IND"]
[SourceTitle "playchess.com"]
[Source "ChessBase"]
[SourceQuality "1"]
[TimeControl "5400+30"]

1. e4 {[%emt 0:00:01]} c6 {[%emt 0:00:06]} 2. d4 {[%emt 0:00:07]} d5 {[%emt 0:00:04]} 3. exd5 {[%emt 0:00:08]} cxd5 {[%emt 0:00:08]} 4. Bd3 {[%emt 0:00:04]} Nc6 {[%emt 0:00:36]} 5. c3 {[%emt 0:00:01]} Nf6 {[%emt 0:00:07]} 6. Bf4 {[%emt 0:00:02]} Bg4 {[%emt 0:04:02]} 7. Qb3 {[%emt 0:00:01]} Qd7 {[%emt 0:00:09]} 8. Nd2 {[%emt 0:00:08]} e6 {[%emt 0:00:07]} 9. Ngf3 {[%emt 0:00:01]} Bd6 {[%emt 0:00:10]} 10. Bxd6 {[%emt 0:00:12]} Qxd6 {[%emt 0:03:32]} 11. O-O {[%emt 0:00:07]} O-O {[%emt 0:00:34]} 12. Rae1 {[%emt 0:00:01]} Bxf3 {[%emt 0:07:10]} 13. Nxf3 {[%emt 0:00:01]} Nd7 {[%emt 0:00:11]} 14. Qc2 {[%emt 0:04:03]} h6 {[%emt 0:01:03]} 15. Qe2 {[%emt 0:00:53]} Rab8 {[%emt 0:00:19]} 16. a3 {[%emt 0:03:56]} a6 {[%emt 0:00:07]} 17. Ne5 {[%emt 0:02:22]} Ncxe5 18. dxe5 {[%emt 0:01:11]} Qe7 {[%emt 0:03:52]} 19. f4 {[%emt 0:01:55]} Rfe8 {[%emt 0:03:07]} 20. Qh5 {[%emt 0:05:00]} b5 {[%emt 0:03:00]} 21. Rf3 {[%emt 0:01:50]} Nf8 {[%emt 0:03:30]} 22. Ree3 {[%emt 0:13:26]} f5 23. g4 {[%emt 0:21:43]} fxg4 {[%emt 0:15:08]} 24. Qxg4 {[%emt 0:00:35]} Rbd8 {[%emt 0:01:31]} 25. Rh3 {[%emt 0:11:20]} Kh8 {[%emt 0:09:22]} 26. Reg3 {[%emt 0:05:12]} Qf7 {[%emt 0:03:03]} 27. Rh5 {[%emt 0:03:38]} d4 {[%emt 0:03:41]} 28. Rgh3 {[%emt 0:02:03]} Nh7 {[%emt 0:06:41]} 29. Qh4 {[%emt 0:08:01]} Qe7 {[%emt 0:07:44]} 30. Qxe7 {[%emt 0:02:44]} Rxe7 {[%emt 0:00:17]} 31. c4 {[%emt 0:00:43]} bxc4 {[%emt 0:01:27]} 32. Bxc4 {[%emt 0:01:28]} Rc7 {[%emt 0:00:56]} 33. Bd3 {[%emt 0:01:03]} Nf8 {[%emt 0:04:06]} 34. Rg3 {[%emt 0:02:28]} a5 {[%emt 0:01:06]} 35. Rg2 {[%emt 0:02:12]} Rc1+ {[%emt 0:01:32]} 36. Kf2 {[%emt 0:00:30]} Nd7 {[%emt 0:00:20]} 37. b4 {[%emt 0:02:02]} Rc3 {[%emt 0:01:47]} 38. Ke2 {[%emt 0:02:40]} axb4 {[%emt 0:04:35]} 39. axb4 {[%emt 0:00:28]} Ra8 {[%emt 0:00:27]} 40. Rg3 {[%emt 0:02:51]} Ra2+ {[%emt 0:00:24]} 41. Kd1 {[%emt 0:00:00]} Nb6 {[%emt 0:00:42]} 42. Be4 {[%emt 0:00:58]} Na4 {[%emt 0:01:20]} 43. Rhh3 {[%emt 0:01:16]} Rxg3 {[%emt 0:02:19]} 44. Rxg3 {[%emt 0:00:01]} Nc3+ {[%emt 0:00:10]} 45. Rxc3 {[%emt 0:00:01]} dxc3 {[%emt 0:00:08]} 46. b5 {[%emt 0:00:00]} Rb2 {[%emt 0:00:25]} 47. Bc6 {[%emt 0:00:02]} Kg8 {[%emt 0:00:29]} 48. Bd7 {[%emt 0:00:15]} Rd2+ {[%emt 0:00:07]} 0-1

[Event "36th Indian-ch U13 Open 2023"]
[Site "Secunderabad"]
[Date "2023.12.07"]
[Round "7.1"]
[White "Vivaan Vijay Saraogi"]
[Black "Mrinmoy Rajkhowa"]
[Result "1-0"]
[ECO "B96"]
[WhiteElo "1982"]
[BlackElo "1840"]
[Annotator "NA RC"]
[PlyCount "83"]
[EventDate "2023.12.04"]
[EventType "swiss"]
[EventCountry "IND"]
[SourceTitle "playchess.com"]
[Source "ChessBase"]
[SourceQuality "1"]
[TimeControl "5400+30"]

1. e4 {[%emt 0:00:05]} c5 {[%emt 0:00:05]} 2. Nf3 {[%emt 0:00:04]} d6 {[%emt 0:00:03]} 3. d4 {[%emt 0:00:05]} cxd4 {[%emt 0:00:03]} 4. Nxd4 {[%emt 0:00:04]} Nf6 {[%emt 0:00:05]} 5. Nc3 {[%emt 0:00:04]} a6 {[%emt 0:00:03]} 6. Bg5 {[%emt 0:00:09]} e6 {[%emt 0:00:34]} 7. f4 {[%emt 0:00:13]} h6 {[%emt 0:00:26]} 8. Bh4 {[%emt 0:00:08]} Qb6 {[%emt 0:00:05]} 9. Qd2 {[%emt 0:00:06]} Qxb2 {[%emt 0:00:07]} 10. Rb1 {[%emt 0:00:10]} Qa3 {[%emt 0:00:05]} 11. f5 {[%emt 0:00:23]} Be7 {[%emt 0:00:23]} 12. Be2 {[%emt 0:04:10]} (12. fxe6 $11 fxe6 13. Be2) 12... O-O {[%emt 0:17:38]} (12... Nxe4 13. Nxe4 Bxh4+ 14. g3 $11) (12... e5 $5 {[%cal Re5d4]} 13. Bxf6 Bxf6 $15) 13. fxe6 {[%emt 0:04:47]} fxe6 {[%emt 0:00:16]} 14. O-O {[%emt 0:16:06]} Qa5 $11 {[%emt 0:08:10]} 15. Bc4 {[%emt 0:51:09]} Qc5 {[%emt 0:22:26]} 16. Bb3 {[%emt 0:00:29]} Nc6 {[%emt 0:02:23]} 17. Bf2 {[%emt 0:00:18]} Qe5 {[%emt 0:10:02]} 18. Nxc6 {[%emt 0:07:42]} bxc6 {[%emt 0:00:03]} 19. Bg3 {[%emt 0:03:12]} Qc5+ {[%emt 0:02:20]} 20. Kh1 {[%emt 0:00:34]} Nh5 {[%emt 0:08:18]} 21. Rxf8+ {[%emt 0:01:53]} Bxf8 {[%emt 0:00:58]} 22. Bh4 {[%emt 0:00:24]} Qe5 {[%emt 0:05:16]} 23. Rf1 {[%emt 0:00:42]} d5 {[%emt 0:01:17]} 24. exd5 {[%emt 0:00:45]} Bd6 {[%emt 0:05:21]} 25. g4 {[%emt 0:03:13]} Nf4 {[%emt 0:01:35]} 26. Bg3 {[%emt 0:01:28]} g5 {[%emt 0:00:29]} 27. Re1 {[%emt 0:00:12]} Qg7 {[%emt 0:00:51]} 28. dxe6 {[%emt 0:05:55]} Be7 {[%emt 0:02:34]} 29. Bxf4 {[%emt 0:00:00]} gxf4 {[%emt 0:00:06]} 30. Qxf4 {[%emt 0:00:00]} Bb7 {[%emt 0:00:54]} 31. Qf7+ {[%emt 0:00:00]} Qxf7 {[%emt 0:01:33]} 32. exf7+ {[%emt 0:00:00]} Kf8 {[%emt 0:00:08]} 33. Kg2 {[%emt 0:01:12]} Rd8 {[%emt 0:01:22]} 34. Rd1 {[%emt 0:01:17]} c5+ {[%emt 0:00:15]} 35. Kg3 {[%emt 0:00:29]} Bd6+ {[%emt 0:01:39]} 36. Kf2 {[%emt 0:00:30]} Bc8 {[%emt 0:02:27]} 37. h3 {[%emt 0:00:23]} Bb7 {[%emt 0:01:24]} 38. Rd3 {[%emt 0:00:30]} Ke7 {[%emt 0:00:46]} 39. Ne4 {[%emt 0:00:38]} Bc7 {[%emt 0:05:28]} 40. Rxd8 {[%emt 0:00:07]} Bxd8 {[%emt 0:00:01]} 41. Nf6 {[%emt 0:00:41]} Bb6 {[%emt 0:01:04]} 42. Bc4 {[%emt 0:00:14]} 1-0

[Event "36th Indian-ch U13 Open 2023"]
[Site "Secunderabad"]
[Date "2023.12.07"]
[Round "7.3"]
[White "Adharsh K"]
[Black "Aarav Saish Amonkar"]
[Result "1-0"]
[ECO "C54"]
[WhiteElo "1831"]
[BlackElo "1624"]
[Annotator "NA RC"]
[PlyCount "149"]
[EventDate "2023.12.04"]
[EventType "swiss"]
[EventCountry "IND"]
[SourceTitle "playchess.com"]
[Source "ChessBase"]
[SourceQuality "1"]
[TimeControl "5400+30"]

1. e4 {[%emt 0:00:47]} e5 {[%emt 0:00:11]} 2. Nf3 {[%emt 0:00:03]} Nc6 {[%emt 0:00:08]} 3. Bc4 {[%emt 0:00:06]} Nf6 {[%emt 0:00:08]} 4. d3 {[%emt 0:00:04]} Bc5 {[%emt 0:00:28]} 5. O-O {[%emt 0:00:22]} d6 {[%emt 0:00:19]} 6. c3 {[%emt 0:00:59]} a6 {[%emt 0:00:16]} 7. a4 {[%emt 0:01:37]} Ba7 {[%emt 0:01:41]} 8. Nbd2 {[%emt 0:02:20]} h6 {[%emt 0:02:35]} 9. Bb3 {[%emt 0:09:15]} Qe7 {[%emt 0:01:30]} 10. Bc2 {[%emt 0:00:52]} g5 {[%emt 0:02:35]} 11. Nc4 {[%emt 0:09:32]} g4 {[%emt 0:03:38]} 12. Ne1 {[%emt 0:00:14]} h5 {[%emt 0:01:07]} 13. Bg5 {[%emt 0:10:32]} Be6 {[%emt 0:12:39]} 14. Ne3 {[%emt 0:04:43]} O-O-O {[%emt 0:01:51] [#]} 15. Bh4 $1 {[%emt 0:00:15]} d5 {[%emt 0:06:20]} 16. exd5 {[%emt 0:03:28]} Bxd5 {[%emt 0:00:10]} 17. b4 {[%emt 0:00:36]} Nb8 $18 {[%emt 0:04:27]} (17... Qe6 $16) 18. Qe2 {[%emt 0:03:51]} Be6 {[%emt 0:08:22]} 19. d4 {[%emt 0:05:30]} exd4 {[%emt 0:06:20]} 20. Nf5 {[%emt 0:00:34]} Qd7 {[%emt 0:00:19]} 21. Bxf6 {[%emt 0:00:06]} Bxf5 {[%emt 0:00:19]} 22. Bxh8 {[%emt 0:00:22]} Bxc2 {[%emt 0:05:16]} 23. Bxd4 {[%emt 0:00:12]} Bxd4 {[%emt 0:00:38]} 24. Nxc2 {[%emt 0:05:12]} Bxc3 {[%emt 0:01:38]} 25. Rad1 {[%emt 0:00:08]} Qf5 {[%emt 0:06:16]} 26. Rxd8+ {[%emt 0:01:40]} Kxd8 {[%emt 0:00:20]} 27. Ne3 {[%emt 0:00:17]} Qe4 {[%emt 0:01:42]} 28. Qa2 {[%emt 0:02:05]} Qe6 {[%emt 0:01:54]} 29. Qa3 {[%emt 0:01:32]} Be5 {[%emt 0:03:47]} 30. Qd3+ {[%emt 0:00:18]} Bd6 {[%emt 0:01:05]} 31. Qh7 {[%emt 0:00:07]} Qe5 {[%emt 0:02:29]} 32. Qg8+ {[%emt 0:00:12]} Ke7 {[%emt 0:00:43]} 33. g3 {[%emt 0:00:04]} Nc6 {[%emt 0:01:04]} 34. Re1 {[%emt 0:00:19]} Kd7 {[%emt 0:03:45]} 35. Ng2 {[%emt 0:00:11]} Ne7 {[%emt 0:01:20]} 36. Qxf7 {[%emt 0:00:13]} Qg5 {[%emt 0:00:53]} 37. Nf4 {[%emt 0:07:02]} c6 {[%emt 0:02:13]} 38. Qe6+ {[%emt 0:00:24]} Kc7 {[%emt 0:00:56]} 39. Rd1 {[%emt 0:00:41]} Qe5 {[%emt 0:01:00]} 40. Qxe5 {[%emt 0:01:24]} Bxe5 {[%emt 0:00:17]} 41. Ne6+ {[%emt 0:00:04]} Kb8 {[%emt 0:00:51]} 42. Rd7 {[%emt 0:01:01]} Nd5 {[%emt 0:01:33]} 43. b5 {[%emt 0:00:19]} axb5 {[%emt 0:00:42]} 44. axb5 {[%emt 0:00:05]} Nf6 {[%emt 0:00:37]} 45. bxc6 {[%emt 0:00:36]} bxc6 {[%emt 0:01:20]} 46. Rd1 {[%emt 0:00:15]} Ne4 {[%emt 0:00:40]} 47. Rc1 {[%emt 0:01:14]} Nc3 {[%emt 0:01:03]} 48. Kf1 {[%emt 0:00:23]} Kc8 {[%emt 0:00:39]} 49. Nf4 {[%emt 0:00:26]} Kd7 {[%emt 0:01:12]} 50. Nxh5 {[%emt 0:00:09]} c5 {[%emt 0:00:12]} 51. Nf4 {[%emt 0:00:26]} c4 {[%emt 0:00:37]} 52. Ke1 {[%emt 0:00:35]} Kc6 {[%emt 0:01:32]} 53. Ne2 {[%emt 0:00:17]} Nxe2 {[%emt 0:00:17]} 54. Kxe2 {[%emt 0:00:04]} Kd5 {[%emt 0:00:20]} 55. f3 {[%emt 0:00:27]} gxf3+ {[%emt 0:00:23]} 56. Kxf3 {[%emt 0:00:28]} Kd4 {[%emt 0:00:11]} 57. Rd1+ {[%emt 0:00:07]} Kc3 {[%emt 0:00:12]} 58. Ke4 {[%emt 0:00:03]} Bh8 {[%emt 0:00:17]} 59. Rd8 {[%emt 0:00:13]} Bg7 {[%emt 0:00:13]} 60. Rd7 {[%emt 0:00:13]} Bf6 {[%emt 0:00:21]} 61. h4 {[%emt 0:00:19]} Kc2 {[%emt 0:00:32]} 62. Kf5 {[%emt 0:00:07]} Bh8 {[%emt 0:00:11]} 63. h5 {[%emt 0:00:04]} c3 {[%emt 0:00:07]} 64. h6 {[%emt 0:00:07]} Kb1 {[%emt 0:00:13]} 65. Rb7+ {[%emt 0:00:07]} Ka2 {[%emt 0:00:10]} 66. g4 {[%emt 0:00:27]} c2 {[%emt 0:00:21]} 67. Rc7 {[%emt 0:00:04]} Kb2 {[%emt 0:00:07]} 68. Rxc2+ {[%emt 0:00:05]} Kxc2 {[%emt 0:00:07]} 69. g5 {[%emt 0:00:03]} Bc3 {[%emt 0:00:14]} 70. g6 {[%emt 0:00:07]} Bd2 {[%emt 0:00:03]} 71. h7 {[%emt 0:00:06]} Bc3 {[%emt 0:00:03]} 72. Ke6 {[%emt 0:00:03]} Kd3 {[%emt 0:00:05]} 73. Kf7 {[%emt 0:00:04]} Ke4 {[%emt 0:00:08]} 74. g7 {[%emt 0:00:04]} Bxg7 {[%emt 0:00:07]} 75. Kxg7 {[%emt 0:00:04]} 1-0

[Event "36th Indian-ch U13 Open 2023"]
[Site "Secunderabad"]
[Date "2023.12.07"]
[Round "7.4"]
[White "Vihaan Dumir"]
[Black "Siddhanth Poonja"]
[Result "1-0"]
[ECO "B23"]
[WhiteElo "1798"]
[BlackElo "1806"]
[Annotator "NA RC"]
[PlyCount "63"]
[EventDate "2023.12.04"]
[EventType "swiss"]
[EventCountry "IND"]
[SourceTitle "playchess.com"]
[Source "ChessBase"]
[SourceQuality "1"]
[TimeControl "5400+30"]

1. e4 {[%emt 0:00:03]} c5 {[%emt 0:02:01]} 2. Nc3 {[%emt 0:00:05]} Nc6 {[%emt 0:00:08]} 3. f4 {[%emt 0:00:10]} e6 {[%emt 0:00:06]} 4. Nf3 {[%emt 0:00:05]} d5 {[%emt 0:00:06]} 5. Bb5 {[%emt 0:00:06]} Nge7 {[%emt 0:00:05]} 6. O-O {[%emt 0:00:11]} a6 {[%emt 0:00:03]} 7. Bxc6+ {[%emt 0:00:08]} Nxc6 {[%emt 0:00:05]} 8. d3 {[%emt 0:01:03]} Be7 {[%emt 0:02:21]} 9. Ne2 {[%emt 0:17:46]} O-O {[%emt 0:01:39]} 10. c3 {[%emt 0:00:54]} b5 {[%emt 0:08:05]} 11. Be3 {[%emt 0:00:45]} Bb7 {[%emt 0:16:06]} 12. e5 {[%emt 0:01:49]} d4 {[%emt 0:03:11]} 13. cxd4 {[%emt 0:05:16]} cxd4 {[%emt 0:01:08]} 14. Bf2 {[%emt 0:17:34]} Bc5 {[%emt 0:00:59]} 15. Rc1 $15 {[%emt 0:00:23]} Qd5 {[%emt 0:02:21]} 16. Ng3 {[%emt 0:04:03]} Rfd8 {[%emt 0:06:23]} 17. Ne4 {[%emt 0:01:31]} Be7 {[%emt 0:00:15]} 18. a3 {[%emt 0:01:17]} Rab8 {[%emt 0:15:20]} 19. Qe1 {[%emt 0:01:29]} b4 {[%emt 0:03:52]} 20. Bh4 {[%emt 0:00:46]} Qd7 {[%emt 0:10:04]} 21. Qg3 {[%emt 0:05:54]} Kh8 {[%emt 0:02:43]} 22. Nfg5 {[%emt 0:04:48]} Bxg5 {[%emt 0:14:12]} 23. Bxg5 {[%emt 0:00:06]} Ne7 {[%emt 0:03:59]} 24. Nf6 {[%emt 0:02:17]} Qb5 {[%emt 0:01:56]} 25. Qh3 {[%emt 0:01:15]} h6 {[%emt 0:00:06]} 26. Bxh6 {[%emt 0:00:44]} gxf6 {[%emt 0:00:16]} 27. Bg5+ {[%emt 0:01:21]} Kg8 {[%emt 0:00:53]} 28. Bxf6 {[%emt 0:00:11]} Kf8 {[%emt 0:01:02]} 29. Qh8+ {[%emt 0:00:11]} Ng8 {[%emt 0:00:10]} 30. Qg7+ {[%emt 0:00:04]} Ke8 {[%emt 0:00:05]} 31. Qxg8+ {[%emt 0:00:04]} Kd7 {[%emt 0:00:04]} 32. Qxf7# {[%emt 0:00:07]} 1-0